fUSD/lending_fUSD_20251025
["ID","MTS","AMOUNT","RATE_DAILY","PERIOD"]
[392365709,1761407449527,-229.662786,0.00030392,30]
[392365710,1761407449536,-2264.65,0.00030392,9]
[392365711,1761407449545,-743.19,0.00030401,9]
[392365712,1761407449555,-500.0,0.00030401,9]
[392365713,1761407449564,-514.84778261,0.00030401,9]
[392365714,1761407449573,-530.51745859,0.00030401,7]
[392365715,1761407449582,-151.0,0.00030402,14]
[392365716,1761407449591,-154.037028,0.00030402,30]
[392365717,1761407449600,-152.17193,0.00030402,30]
[392365718,1761407449609,-151.0,0.00030402,30]
[392365719,1761407449618,-151.730275,0.00030402,30]
[392365720,1761407449628,-151.0,0.00030402,30]
[392365721,1761407449637,-152.106415,0.00030402,30]
[392365722,1761407449647,-151.0,0.00030402,30]
[392365723,1761407449656,-151.0,0.00030402,30]
[392365724,1761407449665,-151.0,0.00030402,30]
[392365725,1761407449675,-151.0,0.00030402,30]
[392365726,1761407449685,-151.0,0.00030402,30]
[392365727,1761407449695,-151.0,0.00030402,30]
[392365728,1761407449704,-151.0,0.00030402,30]
[392365729,1761407449713,-151.0,0.00030402,30]
[392365730,1761407449722,-151.0,0.00030402,30]
[392365731,1761407449732,-151.0,0.00030402,30]
[392365732,1761407449741,-151.413387,0.00030402,30]
[392365733,1761407449750,-151.0,0.00030402,30]
[392365734,1761407449759,-151.0,0.00030402,30]
[392365735,1761407449768,-151.0,0.00030402,30]
[392365736,1761407449778,-242.131992,0.00030402,30]
[392365737,1761407449787,-151.385958,0.00030402,30]
[392365738,1761407449797,-152.191618,0.00030402,30]
[392365739,1761407449806,-151.0,0.00030402,30]
[392365740,1761407449816,-151.0,0.00030402,30]
[392365741,1761407449825,-151.0,0.00030402,30]
[392365742,1761407449835,-151.0,0.00030402,30]
[392365743,1761407449844,-151.0,0.00030402,30]
[392365744,1761407449854,-180.496606,0.00030402,30]
[392365745,1761407449863,-198.073359,0.00030402,30]
[392365746,1761407449872,-180.496606,0.00030402,30]
[392365747,1761407449882,-198.073359,0.00030402,30]
[392365748,1761407449892,-180.496606,0.00030402,30]
[392365749,1761407449901,-198.073359,0.00030402,30]
[392365750,1761407449910,-198.073359,0.00030402,30]
[392365751,1761407449920,-180.496606,0.00030402,30]
[392365752,1761407449929,-151.0,0.00030402,30]
[392365753,1761407449939,-151.0,0.00030402,30]
[392365754,1761407449947,-151.0,0.00030402,30]
[392365755,1761407449956,-151.0,0.00030402,30]
[392365756,1761407449966,-151.0,0.00030402,30]
[392365757,1761407449975,-151.0,0.00030402,15]
[392365758,1761407449985,-151.0,0.00030402,15]
[392365759,1761407449995,-151.0,0.00030402,15]
[392365760,1761407450004,-151.0,0.00030402,30]
[392365761,1761407450014,-151.0,0.00030402,30]
[392365762,1761407450023,-151.0,0.00030402,30]
[392365763,1761407450032,-152.951844,0.00030402,30]
[392365764,1761407450042,-151.0,0.00030402,30]
[392365765,1761407450053,-151.627988,0.00030402,30]
[392365766,1761407450063,-151.0,0.00030402,30]
[392365767,1761407450073,-209.782123,0.00030402,30]
[392365768,1761407450082,-209.782123,0.00030402,30]
[392365769,1761407450091,-151.0,0.00030402,30]
[392365770,1761407450101,-151.0,0.00030402,30]
[392365771,1761407450111,-209.782123,0.00030402,30]
[392365772,1761407450121,-209.782123,0.00030402,30]
[392365773,1761407450131,-209.782123,0.00030402,30]
[392365774,1761407450140,-209.782123,0.00030402,30]
[392365775,1761407450150,-151.0,0.00030402,30]
[392365776,1761407450159,-151.0,0.00030402,30]
[392365777,1761407450168,-151.0,0.00030402,30]
[392365778,1761407450177,-151.0,0.00030402,30]
[392365779,1761407450187,-151.0,0.00030402,30]
[392365780,1761407450196,-209.782123,0.00030402,30]
[392365781,1761407450205,-151.0,0.00030402,30]
[392365782,1761407450215,-209.782123,0.00030402,30]
[392365783,1761407450224,-151.0,0.00030402,30]
[392365784,1761407450233,-151.0,0.00030402,30]
[392365785,1761407450242,-151.0,0.00030402,30]
[392365786,1761407450254,-151.0,0.00030402,30]
[392365787,1761407450264,-151.0,0.00030402,30]
[392365788,1761407450274,-152.307636,0.00030402,30]
[392365789,1761407450283,-151.0,0.00030402,30]
[392365790,1761407450292,-151.0,0.00030402,30]
[392365791,1761407450301,-151.0,0.00030402,30]
[392365792,1761407450310,-151.0,0.00030402,30]
[392365793,1761407450319,-151.0,0.00030402,30]
[392365794,1761407450328,-151.0,0.00030402,30]
[392365795,1761407450338,-151.742609,0.00030402,30]
[392365796,1761407450347,-151.0,0.00030402,30]
[392365797,1761407450358,-153.352023,0.00030402,30]
[392365798,1761407450367,-151.0,0.00030402,30]
[392365799,1761407450377,-151.0,0.00030402,30]
[392365800,1761407450386,-151.0,0.00030402,30]
[392365801,1761407450395,-239.521584,0.00030402,30]
[392365802,1761407450404,-151.0,0.00030402,30]
[392365803,1761407450413,-151.0,0.00030402,30]
[392365804,1761407450422,-151.0,0.00030402,30]
[392365805,1761407450431,-151.0,0.00030402,30]
[392365806,1761407450440,-151.0,0.00030402,30]
[392365807,1761407450450,-151.0,0.00030402,30]
[392365808,1761407450459,-151.0,0.00030402,30]
[392365809,1761407450468,-151.784906,0.00030402,30]
[392365810,1761407450478,-151.0,0.00030402,30]
[392365811,1761407450487,-151.991598,0.00030402,30]
[392365812,1761407450498,-151.0,0.00030402,30]
[392365813,1761407450507,-151.0,0.00030402,30]
[392365814,1761407450516,-151.0,0.00030402,30]
[392365815,1761407450526,-151.0,0.00030402,30]
[392365816,1761407450536,-151.0,0.00030402,30]
[392365817,1761407450546,-151.319195,0.00030402,30]
[392365818,1761407450555,-152.054187,0.00030402,30]
[392365819,1761407450568,-151.0,0.00030402,30]
[392365820,1761407450580,-151.0,0.00030402,30]
[392365821,1761407450590,-151.0,0.00030402,30]
[392365822,1761407450600,-187.720708,0.00030402,30]
[392365823,1761407450609,-167.12577,0.00030402,30]
[392365824,1761407450618,-151.0,0.00030402,30]
[392365825,1761407450628,-151.0,0.00030402,30]
[392365826,1761407450637,-151.0,0.00030402,30]
[392365827,1761407450646,-151.0,0.00030402,30]
[392365828,1761407450656,-151.794146,0.00030402,30]
[392365829,1761407450666,-151.0,0.00030402,30]
[392365830,1761407450676,-151.0,0.00030402,30]
[392365831,1761407450685,-151.0,0.00030402,30]
[392365832,1761407450695,-405.263566,0.00030402,30]
[392365833,1761407450704,-151.0,0.00030402,30]
[392365834,1761407450714,-405.263566,0.00030402,30]
[392365835,1761407450723,-151.0,0.00030402,30]
[392365836,1761407450733,-151.0,0.00030402,30]
[392365837,1761407450743,-405.263566,0.00030402,30]
[392365838,1761407450753,-151.0,0.00030402,30]
[392365839,1761407450762,-282.299472,0.00030402,30]
[392365840,1761407450772,-405.263566,0.00030402,30]
[392365841,1761407450781,-161.990424,0.00030402,30]
[392365842,1761407450791,-151.0,0.00030402,30]
[392365843,1761407450801,-158.903343,0.00030402,30]
[392365844,1761407450812,-158.903343,0.00030402,30]
[392365845,1761407450823,-158.903343,0.00030402,30]
[392365846,1761407450833,-158.903343,0.00030402,30]
[392365847,1761407450843,-151.0,0.00030402,30]
[392365848,1761407450853,-151.0,0.00030402,30]
[392365849,1761407450863,-151.0,0.00030402,30]
[392365850,1761407450873,-151.0,0.00030402,30]
[392365851,1761407450882,-153.223022,0.00030402,30]
[392365852,1761407450892,-151.0,0.00030402,30]
[392365853,1761407450902,-151.0,0.00030402,30]
[392365854,1761407450912,-151.0,0.00030402,30]
[392365855,1761407450922,-151.0,0.00030402,30]
[392365856,1761407450932,-151.0,0.00030402,30]
[392365857,1761407450941,-151.0,0.00030402,30]
[392365858,1761407450951,-151.0,0.00030402,30]
[392365859,1761407450960,-151.0,0.00030402,30]
[392365860,1761407450970,-151.0,0.00030402,30]
[392365861,1761407450981,-151.0,0.00030402,30]
[392365862,1761407450990,-151.00001,0.00030402,30]
[392365863,1761407451000,-151.0,0.00030402,30]
[392365864,1761407451010,-151.0,0.00030402,30]
[392365865,1761407451019,-151.0,0.00030402,30]
[392365866,1761407451029,-151.0,0.00030402,30]
[392365867,1761407451038,-206.252572,0.00030402,30]
[392365868,1761407451047,-206.252572,0.00030402,30]
[392365869,1761407451057,-206.252572,0.00030402,30]
[392365870,1761407451066,-229.306763,0.00030402,30]
[392365871,1761407451075,-206.252572,0.00030402,30]
[392365872,1761407451084,-984.013067,0.00030402,30]
[392365873,1761407451094,-151.0,0.00030402,30]
[392365874,1761407451104,-151.0,0.00030402,30]
[392365875,1761407451113,-229.306763,0.00030402,30]
[392365876,1761407451124,-984.013067,0.00030402,30]
[392365877,1761407451133,-229.306763,0.00030402,30]
[392365878,1761407451142,-229.306763,0.00030402,30]
[392365879,1761407451152,-984.013067,0.00030402,30]
[392365880,1761407451161,-984.013067,0.00030402,30]
[392365881,1761407451170,-151.0,0.00030402,30]
[392365882,1761407451179,-151.0,0.00030402,30]
[392365883,1761407451189,-151.0,0.00030402,30]
[392365884,1761407451198,-151.0,0.00030402,30]
[392365885,1761407451207,-151.0,0.00030402,30]
[392365886,1761407451218,-251.318486,0.00030402,30]
[392365887,1761407451227,-154.582619,0.00030402,30]
[392365888,1761407451236,-422.804018,0.00030402,30]
[392365889,1761407451245,-154.582619,0.00030402,30]
[392365890,1761407451255,-422.804018,0.00030402,30]
[392365891,1761407451277,-151.0,0.00030402,30]
[392365892,1761407451288,-154.582619,0.00030402,30]
[392365893,1761407451297,-422.804018,0.00030402,30]
[392365894,1761407451306,-154.582619,0.00030402,30]
[392365895,1761407451315,-422.804018,0.00030402,30]
[392365896,1761407451325,-94007.597231,0.00030402,2]
[392365897,1761407451334,-150.0,0.00030405,7]
[392365898,1761407451343,-743.19,0.00030411,9]
[392365899,1761407451352,-2264.65,0.00030411,9]
[392365900,1761407451361,-172864.1528364,0.00030412,2]
[392365901,1761407451371,-151.0,0.00030412,30]
[392365902,1761407451380,-151.0,0.00030412,30]
[392365903,1761407451390,-151.0,0.00030412,30]
[392365904,1761407451399,-151.0,0.00030412,30]
[392365905,1761407451408,-151.0,0.00030412,30]
[392365906,1761407451418,-151.0,0.00030412,30]
[392365907,1761407451433,-151.0,0.00030412,30]
[392365908,1761407451442,-151.0,0.00030412,30]
[392365909,1761407451451,-151.0,0.00030412,30]
[392365910,1761407451461,-297.754834,0.00030412,30]
[392365911,1761407451470,-151.0,0.00030412,30]
[392365912,1761407451479,-151.0,0.00030412,30]
[392365913,1761407451487,-151.0,0.00030412,30]
[392365914,1761407451496,-151.0,0.00030412,30]
[392365915,1761407451506,-151.0,0.00030412,30]
[392365916,1761407451515,-151.0,0.00030412,30]
[392365917,1761407451524,-151.0,0.00030412,30]
[392365918,1761407451534,-151.0,0.00030412,30]
[392365919,1761407451543,-151.0,0.00030412,10]
[392365920,1761407451552,-151.0,0.00030412,30]
[392365921,1761407451562,-152.889183,0.00030412,10]
[392365922,1761407451571,-151.0,0.00030412,30]
[392365923,1761407451580,-151.0,0.00030412,30]
[392365924,1761407451590,-151.0,0.00030412,30]
[392365925,1761407451599,-151.0,0.00030412,30]
[392365926,1761407451608,-151.0,0.00030412,30]
[392365927,1761407451617,-151.0,0.00030412,14]
[392365928,1761407451626,-151.84249,0.00030412,30]
[392365929,1761407451635,-151.0,0.00030412,30]
[392365930,1761407451644,-151.0,0.00030412,30]
[392365931,1761407451654,-151.0,0.00030412,30]
[392365932,1761407451663,-151.0,0.00030412,30]
[392365933,1761407451672,-151.0,0.00030412,30]
[392365934,1761407451681,-154.525948,0.00030412,30]
[392365935,1761407451691,-151.0,0.00030412,30]
[392365936,1761407451700,-152.646131,0.00030412,30]
[392365937,1761407451709,-151.0,0.00030412,30]
[392365938,1761407451719,-151.0,0.00030412,30]
[392365939,1761407451728,-151.0,0.00030412,30]
[392365940,1761407451738,-151.0,0.00030412,30]
[392365941,1761407451747,-151.0,0.00030412,30]
[392365942,1761407451757,-151.0,0.00030412,30]
[392365943,1761407451767,-152.637504,0.00030412,30]
[392365944,1761407451776,-151.0,0.00030412,30]
[392365945,1761407451785,-151.0,0.00030412,30]
[392365946,1761407451794,-151.0,0.00030412,30]
[392365947,1761407451804,-180.496606,0.00030412,30]
[392365948,1761407451813,-198.073359,0.00030412,30]
[392365949,1761407451823,-180.496606,0.00030412,30]
[392365950,1761407451832,-198.073359,0.00030412,30]
[392365951,1761407451841,-180.496606,0.00030412,30]
[392365952,1761407451850,-198.073359,0.00030412,30]
[392365953,1761407451859,-198.073359,0.00030412,30]
[392365954,1761407451869,-180.496606,0.00030412,30]
[392365955,1761407451878,-151.0,0.00030412,30]
[392365956,1761407451888,-195.187792,0.00030412,30]
[392365957,1761407451897,-154.809523,0.00030412,30]
[392365958,1761407451906,-151.0,0.00030412,30]
[392365959,1761407451915,-151.0,0.00030412,30]
[392365960,1761407451925,-151.0,0.00030412,15]
[392365961,1761407451934,-151.0,0.00030412,30]
[392365962,1761407451943,-209.782123,0.00030412,30]
[392365963,1761407451952,-151.0,0.00030412,30]
[392365964,1761407451961,-209.782123,0.00030412,30]
[392365965,1761407451971,-209.782123,0.00030412,30]
[392365966,1761407451980,-151.0,0.00030412,30]
[392365967,1761407451989,-151.0,0.00030412,30]
[392365968,1761407451999,-151.0,0.00030412,30]
[392365969,1761407452008,-209.782123,0.00030412,30]
[392365970,1761407452017,-151.0,0.00030412,30]
[392365971,1761407452026,-151.0,0.00030412,30]
[392365972,1761407452035,-151.0,0.00030412,30]
[392365973,1761407452046,-153.571722,0.00030412,30]
[392365974,1761407452055,-151.0,0.00030412,30]
[392365975,1761407452065,-151.0,0.00030412,30]
[392365976,1761407452074,-151.0,0.00030412,30]
[392365977,1761407452083,-251.386108,0.00030412,30]
[392365978,1761407452092,-151.0,0.00030412,30]
[392365979,1761407452102,-199.347392,0.00030412,30]
[392365980,1761407452111,-151.0,0.00030412,30]
[392365981,1761407452120,-151.0,0.00030412,30]
[392365982,1761407452130,-151.0,0.00030412,30]
[392365983,1761407452139,-153.459826,0.00030412,30]
[392365984,1761407452148,-151.0,0.00030412,30]
[392365985,1761407452157,-151.0,0.00030412,30]
[392365986,1761407452167,-151.0,0.00030412,30]
[392365987,1761407452176,-176.847926,0.00030412,30]
[392365988,1761407452185,-151.0,0.00030412,30]
[392365989,1761407452194,-151.0,0.00030412,30]
[392365990,1761407452203,-1153.891674,0.00030412,30]
[392365991,1761407452212,-243.906039,0.00030412,30]
[392365992,1761407452222,-243.906039,0.00030412,30]
[392365993,1761407452231,-243.906039,0.00030412,30]
[392365994,1761407452242,-243.906039,0.00030412,30]
[392365995,1761407452251,-151.0,0.00030412,30]
[392365996,1761407452260,-374.35151,0.00030412,30]
[392365997,1761407452270,-374.35151,0.00030412,30]
[392365998,1761407452279,-773.083977,0.00030412,30]
[392365999,1761407452288,-151.0,0.00030412,30]
[392366000,1761407452298,-374.35151,0.00030412,30]
[392366001,1761407452307,-773.083977,0.00030412,30]
[392366002,1761407452316,-374.35151,0.00030412,30]
[392366003,1761407452326,-773.083977,0.00030412,30]
[392366004,1761407452336,-773.083977,0.00030412,30]
[392366005,1761407452346,-155.225836,0.00030412,30]
[392366006,1761407452355,-151.0,0.00030412,30]
[392366007,1761407452364,-151.0,0.00030412,30]
[392366008,1761407452373,-151.0,0.00030412,30]
[392366009,1761407452382,-151.0,0.00030412,30]
[392366010,1761407452391,-151.0,0.00030412,30]
[392366011,1761407452400,-151.0,0.00030412,30]
[392366012,1761407452409,-229.662786,0.00030412,30]
[392366013,1761407452418,-151.0,0.00030412,30]
[392366014,1761407452427,-229.662786,0.00030412,30]
[392366015,1761407452435,-151.0,0.00030412,30]
[392366016,1761407452444,-229.662786,0.00030412,30]
[392366017,1761407452453,-229.662786,0.00030412,30]
[392366018,1761407452462,-151.0,0.00030414,2]
[392366019,1761407452471,-842.39743533,0.00030414,2]
[392366020,1761407452480,-150.0,0.00030423,7]
[392366021,1761407452489,-151.0,0.00030462,30]
[392366022,1761407452498,-151.0,0.00030462,30]
[392366023,1761407452507,-156.044509,0.00030462,30]
[392366024,1761407452516,-405.263566,0.00030462,30]
[392366025,1761407452524,-151.0,0.00030462,30]
[392366026,1761407452533,-405.263566,0.00030462,30]
[392366027,1761407452542,-151.0,0.00030462,30]
[392366028,1761407452551,-151.0,0.00030462,30]
[392366029,1761407452560,-405.263566,0.00030462,30]
[392366030,1761407452568,-151.0,0.00030462,30]
[392366031,1761407452578,-405.263566,0.00030462,30]
[392366032,1761407452586,-151.0,0.00030462,30]
[392366033,1761407452595,-158.903343,0.00030462,30]
[392366034,1761407452605,-158.903343,0.00030462,30]
[392366035,1761407452614,-158.903343,0.00030462,30]
[392366036,1761407452623,-158.903343,0.00030462,30]
[392366037,1761407452633,-151.0,0.00030462,30]
[392366038,1761407452643,-151.0,0.00030462,30]
[392366039,1761407452652,-151.0,0.00030462,30]
[392366040,1761407452662,-151.0,0.00030462,30]
[392366041,1761407452671,-151.0,0.00030462,30]
[392366042,1761407452681,-151.0,0.00030462,30]
[392366043,1761407452691,-286.434734,0.00030462,30]
[392366044,1761407452700,-151.0,0.00030462,30]
[392366045,1761407452710,-151.0,0.00030462,30]
[392366046,1761407452720,-151.0,0.00030462,30]
[392366047,1761407452729,-293.71902,0.00030462,30]
[392366048,1761407452739,-151.0,0.00030462,30]
[392366049,1761407452748,-500.0,0.00030466,2]
[392366050,1761407452757,-150.0,0.0003047,7]
[392366051,1761407452767,-500.0,0.00030473,5]
[392366052,1761407452777,-214.69295366,0.00030473,5]
[392366053,1761407452786,-500.0,0.00030473,5]
[392366054,1761407452796,-1000.0,0.00030565,2]
[392366055,1761407452805,-760.65841123,0.00030581,2]
[392366056,1761407452815,-12350.51825969,0.00030581,2]
[392366057,1761407452825,-743.19,0.00030591,9]
[392366058,1761407452834,-150.0,0.00030599,7]
[392366059,1761407452843,-667.30507367,0.00030599,6]
[392366060,1761407452853,-571.21417139,0.00030599,2]
[392366061,1761407452862,-28708.65,0.000306,7]
[392366062,1761407452872,-151.0,0.000306,30]
[392366063,1761407452882,-151.0,0.000306,30]
[392366064,1761407452891,-151.0,0.000306,30]
[392366065,1761407452901,-206.252572,0.000306,30]
[392366066,1761407452911,-206.252572,0.000306,30]
[392366067,1761407452921,-206.252572,0.000306,30]
[392366068,1761407452931,-229.306763,0.000306,30]
[392366069,1761407452941,-984.013067,0.000306,30]
[392366070,1761407452951,-151.0,0.000306,30]
[392366071,1761407452962,-206.252569,0.000306,30]
[392366072,1761407452972,-229.306763,0.000306,30]
[392366073,1761407452982,-984.013067,0.000306,30]
[392366075,1761407452992,-229.306763,0.000306,30]
[392366076,1761407453002,-229.306755,0.000306,30]
[392366077,1761407453011,-984.013067,0.000306,30]
[392366078,1761407453020,-984.013067,0.000306,30]
[392366080,1761407453030,-151.0,0.000306,30]
[392366081,1761407453039,-151.0,0.000306,30]
[392366082,1761407453049,-155.404876,0.000306,30]
[392366083,1761407453058,-151.0,0.000306,30]
[392366084,1761407453068,-154.582619,0.000306,30]
[392366085,1761407453078,-422.804018,0.000306,30]
[392366086,1761407453088,-154.582619,0.000306,30]
[392366087,1761407453098,-422.804018,0.000306,30]
[392366088,1761407453108,-151.0,0.000306,30]
[392366089,1761407453119,-154.582619,0.000306,30]
[392366090,1761407453128,-422.804018,0.000306,30]
[392366091,1761407453138,-154.582615,0.000306,30]
[392366092,1761407453147,-422.804014,0.000306,30]
[392366093,1761407453158,-10773.8664292,0.00030606,2]
[392366094,1761407453167,-662.77,0.00030609,14]
[392366095,1761407453177,-2264.65,0.00030663,9]
[392366096,1761407453188,-20503.87274092,0.00030663,2]
[392366097,1761407453197,-242.3924933,0.00030666,2]
[392366098,1761407453206,-2615867.81665004,0.00030676,7]
[392366099,1761407453215,-300.0,0.00030681,2]
[392366100,1761407453225,-1494.23967867,0.00030698,15]
[392366101,1761407453235,-23024.86669313,0.00030699,2]
[392366102,1761407453245,-151.0,0.00030699,30]
[392366103,1761407453254,-151.0,0.00030699,30]
[392366104,1761407453268,-151.0,0.00030699,30]
[392366105,1761407453278,-180.496606,0.00030699,30]
[392366106,1761407453288,-180.496606,0.00030699,30]
[392366107,1761407453298,-180.496606,0.00030699,30]
[392366108,1761407453310,-180.496606,0.00030699,30]
[392366109,1761407453320,-151.0,0.00030699,30]
[392366110,1761407453330,-151.0,0.00030699,15]
[392366111,1761407453340,-209.782123,0.00030699,30]
[392366112,1761407453350,-209.782123,0.00030699,30]
[392366113,1761407453359,-209.782123,0.00030699,30]
[392366114,1761407453369,-151.0,0.00030699,30]
[392366115,1761407453379,-209.782123,0.00030699,30]
[392366116,1761407453389,-151.0,0.00030699,30]
[392366117,1761407453399,-151.0,0.00030699,30]
[392366118,1761407453409,-200.367292,0.00030699,30]
[392366119,1761407453418,-151.0,0.00030699,30]
[392366120,1761407453427,-151.0,0.00030699,30]
[392366121,1761407453437,-151.0,0.00030699,30]
[392366122,1761407453447,-151.0,0.00030699,30]
[392366123,1761407453458,-151.0,0.00030699,30]
[392366124,1761407453468,-151.0,0.00030699,30]
[392366125,1761407453477,-151.0,0.00030699,30]
[392366126,1761407453487,-151.0,0.00030699,30]
[392366127,1761407453497,-151.0,0.00030699,30]
[392366128,1761407453507,-151.0,0.00030699,30]
[392366129,1761407453516,-151.0,0.00030699,30]
[392366130,1761407453526,-1153.891674,0.00030699,30]
[392366131,1761407453536,-243.906039,0.00030699,30]
[392366132,1761407453546,-243.906039,0.00030699,30]
[392366133,1761407453556,-243.906039,0.00030699,30]
[392366134,1761407453565,-243.906039,0.00030699,30]
[392366135,1761407453575,-151.0,0.00030699,30]
[392366136,1761407453585,-1500.0,0.000307,11]
[392366137,1761407453595,-150.0,0.00030705,7]
[392366138,1761407453605,-150.0,0.00030793,7]
[392366139,1761407453615,-1339.77,0.000308,30]
[392366140,1761407453624,-2000.0,0.000308,11]
[392366141,1761407453634,-984.56775296,0.000308,2]
[392366142,1761407453644,-3161.68289756,0.000308,2]
[392366143,1761407453654,-151.0,0.00030849,14]
[392366144,1761407453664,-153.816502,0.00030849,30]
[392366145,1761407453673,-151.0,0.00030849,30]
[392366146,1761407453683,-151.0,0.00030849,30]
[392366147,1761407453694,-197.180347,0.00030849,30]
[392366148,1761407453704,-151.0,0.00030849,30]
[392366149,1761407453714,-153.744293,0.00030849,30]
[392366150,1761407453724,-151.0,0.00030849,30]
[392366151,1761407453733,-198.073359,0.00030849,30]
[392366152,1761407453744,-198.073359,0.00030849,30]
[392366153,1761407453754,-198.073359,0.00030849,30]
[392366154,1761407453764,-198.073359,0.00030849,30]
[392366155,1761407453775,-374.35151,0.00030849,30]
[392366156,1761407453785,-374.35151,0.00030849,30]
[392366157,1761407453795,-773.083977,0.00030849,30]
[392366158,1761407453805,-151.0,0.00030849,30]
[392366159,1761407453815,-374.35151,0.00030849,30]
[392366160,1761407453825,-773.083977,0.00030849,30]
[392366161,1761407453835,-374.351514,0.00030849,30]
[392366162,1761407453844,-773.083977,0.00030849,30]
[392366163,1761407453855,-773.083969,0.00030849,30]
[392366164,1761407453865,-151.0,0.00030849,30]
[392366165,1761407453875,-151.0,0.00030849,30]
[392366166,1761407453884,-151.0,0.00030849,30]
[392366167,1761407453894,-151.0,0.00030849,30]
[392366168,1761407453904,-151.0,0.00030849,30]
[392366169,1761407453914,-151.0,0.00030849,30]
[392366170,1761407453924,-229.662786,0.00030849,30]
[392366171,1761407453934,-151.0,0.00030849,30]
[392366172,1761407453944,-229.662786,0.00030849,30]
[392366173,1761407453954,-151.0,0.00030849,30]
[392366174,1761407453964,-229.662786,0.00030849,30]
[392366175,1761407453974,-229.662794,0.00030849,30]
[392366176,1761407453984,-150.0,0.00030859,2]
[392366177,1761407453995,-1201.86,0.00030859,2]
[392366178,1761407454005,-176.4,0.00030859,2]
[392366179,1761407454015,-547.75,0.00030859,2]
[392366180,1761407454025,-150.0,0.00030859,2]
[392366181,1761407454036,-168.56,0.00030859,2]
[392366182,1761407454046,-150.0,0.00030859,2]
[392366183,1761407454056,-414.48,0.00030859,2]
[392366184,1761407454066,-150.0,0.00030859,2]
[392366185,1761407454076,-547.75,0.00030859,2]
[392366186,1761407454086,-176.4,0.00030859,2]
[392366187,1761407454096,-1201.86,0.00030859,2]
[392366188,1761407454106,-168.56,0.00030859,2]
[392366189,1761407454116,-414.48,0.00030859,2]
[392366190,1761407454126,-150.0,0.00030859,2]
[392366191,1761407454136,-1201.86,0.00030859,2]
[392366192,1761407454146,-176.4,0.00030859,2]
[392366193,1761407454156,-1095.35,0.00030859,2]
[392366194,1761407454166,-150.0,0.00030859,2]
[392366195,1761407454176,-414.48,0.00030859,2]
[392366196,1761407454186,-547.53,0.00030859,2]
[392366197,1761407454196,-176.4,0.00030859,2]
[392366198,1761407454207,-1339.82,0.00030859,2]
[392366199,1761407454217,-345.31,0.00030859,2]
[392366200,1761407454227,-414.48,0.00030859,2]
[392366201,1761407454237,-150.0,0.00030859,2]
[392366202,1761407454247,-414.48,0.00030859,2]
[392366203,1761407454257,-176.4,0.00030859,2]
[392366204,1761407454267,-414.48,0.00030859,2]
[392366205,1761407454276,-176.4,0.00030859,2]
[392366206,1761407454287,-414.48,0.00030859,2]
[392366207,1761407454297,-176.4,0.00030859,2]
[392366208,1761407454307,-414.48,0.00030859,2]
[392366209,1761407454317,-176.4,0.00030859,2]
[392366210,1761407454327,-414.48,0.00030859,2]